[Event "WTCC-65 2018"]
[Site "Radebeul"]
[Date "2018.07.11"]
[Round "5"]
[White "Bellin, Robert"]
[Black "Espig, Lutz"]
[Result "1-0"]
[ECO "B40"]
[WhiteElo "2333"]
[BlackElo "2258"]
[Annotator "NA"]
[PlyCount "99"]
[EventDate "2018.07.07"]
[EventType "team-tourn"]
[EventCountry "GER"]
[SourceTitle "playchess.com"]
[Source "ChessBase"]
[SourceQuality "1"]
[TimeControl "40/5400+30:1800+30"]

1. e4 {[%emt 0:00:41]} c5 {[%emt 0:00:00]} 2. Nf3 {[%emt 0:00:09]} e6 {[%emt 0:00:00]} 3. b3 {[%emt 0:00:50]} d6 {[%emt 0:00:33]} 4. Bb2 {[%emt 0:00:13]} Nc6 {[%emt 0:03:16]} 5. Bb5 {[%emt 0:01:20]} Bd7 {[%emt 0:00:38]} 6. O-O {[%emt 0:00:25]} Nf6 {[%emt 0:00:55]} 7. Re1 {[%emt 0:00:48]} Be7 {[%emt 0:00:44]} 8. Bf1 {[%emt 0:07:27] B50: Sicilian: 2...d6, Miscellaneous} (8. c4 O-O 9. Bxc6 Bxc6 10. Nc3 e5 11. d3 g6 12. Nd2 Nh5 13. Nd5 Bg5 14. Nf1 Bxd5 15. cxd5 f5 {1-0 (42) Kulaots,K (2563)-Neiksans,A (2559) Wroclaw 2014}) 8... O-O {[%emt 0:01:06]} 9. d3 {[%emt 0:00:28]} e5 $146 {[%emt 0:13:44]} ({Predecessor:} 9... b5 10. Nbd2 Qb6 11. c4 b4 12. h3 a5 13. g4 a4 14. Rb1 axb3 15. axb3 e5 {1-0 (57) Vojta,T (2369)-Rehorek,M (2280) Czechia 2011}) 10. c3 {[%emt 0:01:16]} Re8 {[%emt 0:06:27]} 11. Nbd2 {[%emt 0:04:00]} Bf8 {[%emt 0:02:40]} 12. a3 {[%emt 0:08:18]} d5 {[%emt 0:13:38]} 13. exd5 {[%emt 0:12:20]} Nxd5 {[%emt 0:01:10]} 14. g3 {[%emt 0:00:07]} Nc7 {[%emt 0:05:55]} 15. Nc4 {[%emt 0:11:44]} f6 {[%emt 0:00:57]} 16. b4 {[%emt 0:06:28]} Be6 {[%emt 0:01:53]} 17. Ne3 {[%emt 0:00:42]} Qd7 {[%emt 0:03:33]} 18. Qc2 {[%emt 0:04:42]} Rac8 {[%emt 0:04:52]} 19. Rad1 {[%emt 0:04:31]} Qf7 {[%emt 0:01:54]} 20. Qb1 {[%emt 0:04:14]} Nd5 {[%emt 0:02:56]} 21. b5 {[%emt 0:02:39]} Na5 {[%emt 0:02:51]} 22. c4 {[%emt 0:01:59]} Nxe3 {[%emt 0:01:32]} 23. Rxe3 {[%emt 0:00:05]} b6 {[%emt 0:02:15]} 24. Bg2 {[%emt 0:06:41]} h6 {[%emt 0:08:30]} 25. Rde1 {[%emt 0:00:25]} Kh8 {[%emt 0:03:00]} 26. Nd2 {[%emt 0:03:18]} Rcd8 {[%emt 0:04:40]} 27. Bc3 {[%emt 0:02:12]} Bf5 {[%emt 0:02:48]} 28. Bxa5 {[%emt 0:02:42]} bxa5 {[%emt 0:00:02]} 29. Nb3 {[%emt 0:00:05]} a4 {[%emt 0:01:16]} 30. Na5 {[%emt 0:00:12]} Rd6 {[%emt 0:02:48]} 31. Qc2 {[%emt 0:07:45]} Qg6 {[%emt 0:01:57]} 32. Be4 {[%emt 0:01:28]} Bxe4 {[%emt 0:01:49]} 33. dxe4 {[%emt 0:02:40]} Be7 {[%emt 0:02:24]} 34. Nc6 {[%emt 0:01:11]} Bd8 {[%emt 0:00:58]} 35. Rd1 {[%emt 0:01:25]} Rd4 {[%emt 0:00:58]} 36. Nxd4 {[%emt 0:00:30]} exd4 {[%emt 0:00:22]} 37. Re2 {[%emt 0:00:14]} Bb6 {[%emt 0:00:32]} 38. Qd3 {[%emt 0:00:55]} Qg4 {[%emt 0:00:33]} 39. f3 {[%emt 0:01:44]} Qh3 {[%emt 0:00:28]} 40. Rf2 {[%emt 0:00:29]} f5 {[%emt 0:01:17]} 41. Re2 {[%emt 0:03:50]} fxe4 {[%emt 0:01:20]} 42. Rxe4 {[%emt 0:00:13]} Rf8 {[%emt 0:00:18]} 43. Rg4 {[%emt 0:04:07]} Qh5 {[%emt 0:03:32]} 44. Re1 {[%emt 0:00:52]} Bd8 {[%emt 0:00:44]} 45. h4 {[%emt 0:04:48]} Bf6 {[%emt 0:03:06]} 46. Kg2 {[%emt 0:00:42]} Qf7 {[%emt 0:00:45]} 47. Rge4 {[%emt 0:00:28]} Qd7 {[%emt 0:00:38]} 48. Rf4 {[%emt 0:00:53]} Rd8 {[%emt 0:01:05]} 49. Rf5 {[%emt 0:00:58]} Qc7 {[%emt 0:00:45]} 50. Re6 $18 {[%emt 0:01:24]} 1-0

[Event "WTCC-65 2018"]
[Site "Radebeul"]
[Date "2018.07.11"]
[Round "5"]
[White "Rotstein, Jefim"]
[Black "Hort, Vlastimil"]
[Result "0-1"]
[ECO "D04"]
[WhiteElo "2318"]
[BlackElo "2421"]
[Annotator "NA"]
[PlyCount "104"]
[EventDate "2018.07.07"]
[EventType "team-tourn"]
[EventCountry "GER"]
[SourceTitle "playchess.com"]
[Source "ChessBase"]
[SourceQuality "1"]
[TimeControl "40/5400+30:1800+30"]

1. d4 {[%emt 0:00:00]} d5 {[%emt 0:00:00]} 2. Nf3 {[%emt 0:00:00]} Nf6 {[%emt 0:00:00]} 3. e3 {[%emt 0:00:16]} c6 {[%emt 0:02:23]} 4. c4 {[%emt 0:00:41]} g6 {[%emt 0:01:05]} 5. Nc3 {[%emt 0:00:32]} Bg7 {[%emt 0:00:08]} 6. cxd5 {[%emt 0:03:46]} cxd5 {[%emt 0:00:51]} 7. Bd3 {[%emt 0:00:11]} O-O {[%emt 0:01:41]} 8. O-O {[%emt 0:00:11]} Nc6 {[%emt 0:02:26]} 9. Bd2 {[%emt 0:01:19]} b6 {[%emt 0:05:06]} 10. Rc1 {[%emt 0:03:27]} Bb7 {[%emt 0:00:37]} 11. a3 {[%emt 0:02:09]} e6 {[%emt 0:10:14]} 12. b4 {[%emt 0:01:45]} Qe7 {[%emt 0:01:48]} 13. b5 {[%emt 0:04:51]} Na5 {[%emt 0:10:27]} 14. Na4 {[%emt 0:02:44]} Rfc8 {[%emt 0:06:41]} 15. Bxa5 {[%emt 0:05:57]} bxa5 {[%emt 0:00:08]} 16. Nc5 {[%emt 0:00:29]} Ne4 {[%emt 0:03:57]} 17. Nxb7 {[%emt 0:05:42]} Rxc1 {[%emt 0:25:29]} 18. Qxc1 {[%emt 0:00:10]} Qxb7 {[%emt 0:00:04]} 19. Qc6 {[%emt 0:04:12]} Rb8 {[%emt 0:00:31]} 20. Rc1 {[%emt 0:02:01]} Bf8 {[%emt 0:04:49]} 21. a4 {[%emt 0:01:27]} Nd6 {[%emt 0:03:22]} 22. Qxb7 {[%emt 0:01:39]} Nxb7 {[%emt 0:01:45]} 23. Ne5 {[%emt 0:01:46]} Bd6 {[%emt 0:01:51]} 24. Rc6 {[%emt 0:07:02]} Rd8 {[%emt 0:03:47]} 25. f4 {[%emt 0:02:03]} f6 {[%emt 0:01:01]} 26. Nf3 {[%emt 0:01:18]} Rd7 {[%emt 0:11:00]} 27. Ra6 {[%emt 0:07:29]} Nd8 {[%emt 0:00:14]} 28. Rxa5 {[%emt 0:01:12]} Kf7 {[%emt 0:00:08]} 29. Ra6 {[%emt 0:00:42]} Ke7 {[%emt 0:00:15]} 30. a5 {[%emt 0:04:06]} Bb8 {[%emt 0:00:55]} 31. b6 {[%emt 0:03:44]} Rb7 {[%emt 0:01:05]} 32. Bb5 {[%emt 0:01:06]} axb6 {[%emt 0:00:49]} 33. axb6 {[%emt 0:01:40]} Bd6 {[%emt 0:00:42]} 34. Nd2 {[%emt 0:01:39]} e5 {[%emt 0:00:27]} 35. fxe5 {[%emt 0:00:24]} fxe5 {[%emt 0:00:03]} 36. Nb3 {[%emt 0:00:17]} exd4 {[%emt 0:00:29]} 37. exd4 {[%emt 0:01:35]} Rb8 {[%emt 0:00:21]} 38. Nc5 {[%emt 0:03:19]} Rc8 {[%emt 0:00:01]} 39. Ra7+ {[%emt 0:00:41]} Kf6 {[%emt 0:00:27]} 40. b7 {[%emt 0:02:24]} Rxc5 {[%emt 0:00:09]} 41. Ra6 {[%emt 0:32:06]} Rxb5 {[%emt 0:31:29]} 42. Rxd6+ {[%emt 0:00:07]} Ke7 {[%emt 0:00:07]} 43. Rxd5 {[%emt 0:00:18]} Rxb7 {[%emt 0:00:07]} 44. Kf2 {[%emt 0:03:07]} Rb2+ {[%emt 0:00:00]} 45. Kg3 {[%emt 0:00:00]} Rd2 {[%emt 0:00:00]} 46. h4 {[%emt 0:00:00]} Ne6 {[%emt 0:00:00]} 47. h5 {[%emt 0:00:00]} Rxg2+ {[%emt 0:00:00]} 48. Kf3 {[%emt 0:00:00]} Rg5 {[%emt 0:00:00]} 49. Rxg5 {[%emt 0:00:00]} Nxg5+ {[%emt 0:00:00]} 50. Kg4 {[%emt 0:00:00]} Nf7 {[%emt 0:00:00]} 51. hxg6 {[%emt 0:00:00]} hxg6 {[%emt 0:00:00]} 52. Kf4 {[%emt 0:00:00]} Kf6 {[%emt 0:00:00]} 0-1

[Event "WTCC-65 2018"]
[Site "Radebeul"]
[Date "2018.07.11"]
[Round "5"]
[White "Schulze, Ulrich"]
[Black "Gruzmann, Boris"]
[Result "1/2-1/2"]
[ECO "E63"]
[WhiteElo "2313"]
[BlackElo "2176"]
[Annotator "ChessBase"]
[PlyCount "150"]
[EventDate "2018.07.07"]
[EventType "team-tourn"]
[EventCountry "GER"]
[SourceTitle "playchess.com"]
[Source "ChessBase"]
[SourceQuality "1"]
[TimeControl "40/5400+30:1800+30"]

1. d4 {[%emt 0:00:00]} Nf6 {[%emt 0:00:00]} 2. Nf3 {[%emt 0:00:06]} g6 {[%emt 0:00:00]} 3. g3 {[%emt 0:00:22]} Bg7 {[%emt 0:00:03]} 4. Bg2 {[%emt 0:00:06]} O-O {[%emt 0:00:15]} 5. c4 {[%emt 0:00:05]} d6 {[%emt 0:00:10]} 6. Nc3 {[%emt 0:00:15]} Nc6 {[%emt 0:00:19]} 7. O-O {[%emt 0:00:09]} a6 {[%emt 0:00:12]} 8. b3 {[%emt 0:01:05]} Rb8 {[%emt 0:00:51]} 9. Nd5 {[%emt 0:00:25]} Nh5 {[%emt 0:05:24]} 10. Bb2 {[%emt 0:05:16]} f5 {[%emt 0:09:25]} 11. Qd2 {[%emt 0:08:04]} e6 {[%emt 0:08:22]} 12. Nf4 {[%emt 0:06:49]} Nxf4 {[%emt 0:01:50]} 13. gxf4 {[%emt 0:00:39]} Ne7 {[%emt 0:05:19]} 14. Rac1 {[%emt 0:04:57]} b5 {[%emt 0:04:10]} 15. Rfd1 {[%emt 0:07:55]} bxc4 {[%emt 0:01:18]} 16. bxc4 {[%emt 0:02:08]} Qd7 {[%emt 0:09:13]} 17. Rc3 {[%emt 0:11:36]} Bb7 {[%emt 0:02:35]} 18. Rb3 {[%emt 0:00:12]} Be4 {[%emt 0:00:45]} 19. Ng5 {[%emt 0:03:03]} Bxg2 {[%emt 0:03:18]} 20. Kxg2 {[%emt 0:00:02]} h6 {[%emt 0:01:04]} 21. Nf3 {[%emt 0:00:12]} Qa4 {[%emt 0:04:11]} 22. Qe3 {[%emt 0:15:07]} Qxc4 {[%emt 0:04:15]} 23. Rc1 {[%emt 0:00:07]} Qd5 {[%emt 0:06:04]} 24. Rxc7 {[%emt 0:00:20]} Rxb3 {[%emt 0:02:25]} 25. axb3 {[%emt 0:00:56]} Bf6 {[%emt 0:01:59]} 26. Kg3 {[%emt 0:05:39]} Rb8 {[%emt 0:04:29]} 27. Rc4 {[%emt 0:01:53]} Qe4 {[%emt 0:00:45]} 28. Qxe4 {[%emt 0:06:16]} fxe4 {[%emt 0:00:04]} 29. Nd2 {[%emt 0:00:07]} d5 {[%emt 0:02:30]} 30. Ra4 {[%emt 0:00:51]} Nf5+ {[%emt 0:00:58]} 31. Kg2 {[%emt 0:01:58]} e3 {[%emt 0:01:05]} 32. fxe3 {[%emt 0:00:12]} Nxe3+ {[%emt 0:00:08]} 33. Kf3 {[%emt 0:00:31]} Nd1 {[%emt 0:03:05]} 34. Ba1 {[%emt 0:00:28]} Rb6 {[%emt 0:01:29]} 35. e3 {[%emt 0:00:47]} Rc6 {[%emt 0:10:05]} 36. Ke2 {[%emt 0:00:16]} Nc3+ {[%emt 0:00:44]} 37. Bxc3 {[%emt 0:00:07]} Rxc3 {[%emt 0:00:07]} 38. Rxa6 {[%emt 0:00:08]} Kf7 {[%emt 0:00:11]} 39. Ra7+ {[%emt 0:03:48]} Kf8 {[%emt 0:00:46]} 40. Ra1 {[%emt 0:02:46]} g5 {[%emt 0:00:30]} 41. fxg5 {[%emt 0:30:09]} Bxg5 {[%emt 0:30:09]} 42. Rf1+ {[%emt 0:00:32]} Ke7 {[%emt 0:01:46]} 43. Rf3 {[%emt 0:00:19]} Kd6 {[%emt 0:00:53]} 44. Rg3 {[%emt 0:02:25]} e5 {[%emt 0:00:00]} 45. dxe5+ {[%emt 0:00:00]} Kxe5 {[%emt 0:00:00]} 46. Nf3+ {[%emt 0:00:00]} Ke4 {[%emt 0:00:00]} 47. Nd2+ {[%emt 0:00:00]} Ke5 {[%emt 0:00:00]} 48. h4 {[%emt 0:00:00]} Be7 {[%emt 0:00:00]} 49. Nf3+ {[%emt 0:00:00]} Kf6 {[%emt 0:00:00]} 50. h5 {[%emt 0:00:00]} Rxb3 {[%emt 0:03:30]} 51. Rg6+ {[%emt 0:00:00]} Kf7 {[%emt 0:00:08]} 52. Ne5+ {[%emt 0:00:00]} Kf8 {[%emt 0:00:31]} 53. Ng4 {[%emt 0:00:00]} Bg5 {[%emt 0:01:53]} 54. Rd6 {[%emt 0:00:00]} Rb5 {[%emt 0:05:03]} 55. Nxh6 {[%emt 0:00:00]} Bxh6 {[%emt 0:00:26]} 56. Rxh6 {[%emt 0:00:00]} Ke7 {[%emt 0:00:47]} 57. Rh8 {[%emt 0:00:00]} Kf7 {[%emt 0:00:51]} 58. Kd3 {[%emt 0:00:00]} Kg7 {[%emt 0:00:16]} 59. Rd8 {[%emt 0:00:00]} Rb3+ {[%emt 0:01:19]} 60. Kd4 {[%emt 0:00:00]} Rb4+ {[%emt 0:00:02]} 61. Kxd5 {[%emt 0:00:00]} Rb5+ {[%emt 0:00:07]} 62. Ke6 {[%emt 0:00:00]} Rxh5 {[%emt 0:00:08]} 63. e4 {[%emt 0:00:00]} Ra5 {[%emt 0:00:57]} 64. e5 {[%emt 0:00:00]} Ra6+ {[%emt 0:00:52]} 65. Ke7 {[%emt 0:00:00]} Ra7+ {[%emt 0:01:37]} 66. Rd7 {[%emt 0:00:00]} Ra8 {[%emt 0:00:33]} 67. Rc7 {[%emt 0:02:14]} Ra5 {[%emt 0:00:31]} 68. e6 {[%emt 0:00:10]} Ra8 {[%emt 0:00:06]} 69. Rb7 {[%emt 0:03:17]} Rc8 {[%emt 0:00:07]} 70. Kd7 {[%emt 0:02:10]} Ra8 {[%emt 0:00:04]} 71. Ke7 {[%emt 0:01:53]} Rc8 {[%emt 0:00:02]} 72. Rb4 {[%emt 0:00:38]} Rc7+ {[%emt 0:00:20]} 73. Kd8 {[%emt 0:08:58]} Ra7 {[%emt 0:00:11]} 74. e7 {[%emt 0:01:54]} Ra8+ {[%emt 0:00:08]} 75. Kc7 {[%emt 0:00:14]} Kf7 {[%emt 0:00:17]} 1/2-1/2

[Event "WTCC-65 2018"]
[Site "Radebeul"]
[Date "2018.07.11"]
[Round "5"]
[White "Pushkov, Nikolai"]
[Black "Shushpanov, Vladimir"]
[Result "1/2-1/2"]
[ECO "A06"]
[WhiteElo "2311"]
[BlackElo "2198"]
[Annotator "NA"]
[PlyCount "45"]
[EventDate "2018.07.07"]
[EventType "team-tourn"]
[EventCountry "GER"]
[SourceTitle "playchess.com"]
[Source "ChessBase"]
[SourceQuality "1"]
[TimeControl "40/5400+30:1800+30"]

1. Nf3 {[%emt 0:00:00]} d5 {[%emt 0:00:00]} 2. b3 {[%emt 0:00:07]} Bf5 {[%emt 0:01:08]} 3. Bb2 {[%emt 0:00:08]} e6 {[%emt 0:00:18]} 4. e3 {[%emt 0:00:35]} Nf6 {[%emt 0:00:24]} 5. Be2 {[%emt 0:02:31]} h6 {[%emt 0:00:32]} 6. d4 {[%emt 0:05:55]} c5 {[%emt 0:04:08]} 7. O-O {[%emt 0:00:32]} Nc6 {[%emt 0:00:51]} 8. c4 {[%emt 0:01:45]} cxd4 {[%emt 0:08:24]} 9. Nxd4 {[%emt 0:02:21]} Nxd4 {[%emt 0:03:32]} 10. Qxd4 {[%emt 0:04:19]} a6 {[%emt 0:10:43]} 11. cxd5 {[%emt 0:05:32]} Qxd5 {[%emt 0:01:14]} 12. Bf3 {[%emt 0:00:22]} Qxd4 {[%emt 0:00:44]} 13. Bxd4 {[%emt 0:00:03]} Be4 {[%emt 0:01:01]} 14. Bxe4 {[%emt 0:01:16]} Nxe4 {[%emt 0:00:05]} 15. Rc1 {[%emt 0:01:32]} f6 {[%emt 0:15:29]} 16. Nc3 {[%emt 0:05:53]} Nxc3 {[%emt 0:03:24]} 17. Rxc3 {[%emt 0:00:27]} Bd6 {[%emt 0:00:37]} 18. Rd1 {[%emt 0:07:58]} Ke7 {[%emt 0:00:46]} 19. Bb6 {[%emt 0:00:23]} Rac8 {[%emt 0:02:17]} 20. Rcd3 Rc6 21. Rxd6 Rxd6 22. Bc5 Rhd8 23. Bb6 1/2-1/2

[Event "WTCC-65 2018"]
[Site "Radebeul"]
[Date "2018.07.11"]
[Round "5"]
[White "Khanukov, Boris"]
[Black "Buchal, Stephan"]
[Result "1-0"]
[ECO "E91"]
[WhiteElo "2273"]
[BlackElo "2329"]
[Annotator "ChessBase"]
[PlyCount "129"]
[EventDate "2018.07.07"]
[EventType "team-tourn"]
[EventCountry "GER"]
[SourceTitle "playchess.com"]
[Source "ChessBase"]
[SourceQuality "1"]
[TimeControl "40/5400+30:1800+30"]

1. d4 {[%emt 0:00:00]} g6 {[%emt 0:00:00]} 2. c4 {[%emt 0:00:03]} Bg7 {[%emt 0:00:00]} 3. Nf3 {[%emt 0:00:31]} d6 {[%emt 0:00:27]} 4. Nc3 {[%emt 0:00:36]} Nf6 {[%emt 0:00:10]} 5. e4 {[%emt 0:01:15]} O-O {[%emt 0:00:14]} 6. Be2 {[%emt 0:00:07]} Na6 {[%emt 0:00:20]} 7. O-O {[%emt 0:00:37]} e5 {[%emt 0:00:17]} 8. Re1 {[%emt 0:05:41]} c6 {[%emt 0:02:14]} 9. Rb1 {[%emt 0:05:40]} exd4 {[%emt 0:08:42]} 10. Nxd4 {[%emt 0:00:13]} Re8 {[%emt 0:01:46]} 11. Bf1 {[%emt 0:17:33]} Nc5 {[%emt 0:13:19]} 12. f3 {[%emt 0:00:46]} a5 {[%emt 0:10:07]} 13. Be3 {[%emt 0:01:44]} Nh5 {[%emt 0:13:45]} 14. Qd2 {[%emt 0:08:32]} a4 {[%emt 0:08:28]} 15. b4 {[%emt 0:07:10]} axb3 {[%emt 0:00:09]} 16. axb3 {[%emt 0:00:03]} Ra3 {[%emt 0:02:37]} 17. b4 {[%emt 0:05:41]} Ne6 {[%emt 0:04:26]} 18. Nde2 {[%emt 0:05:04]} Be5 {[%emt 0:05:46]} 19. Nd1 {[%emt 0:14:07]} c5 {[%emt 0:11:43]} 20. bxc5 {[%emt 0:05:30]} dxc5 {[%emt 0:00:40]} 21. Qxd8 {[%emt 0:02:27]} Rxd8 {[%emt 0:00:03]} 22. Bf2 {[%emt 0:00:29]} Rd2 {[%emt 0:03:16]} 23. Ne3 {[%emt 0:01:13]} Nd4 {[%emt 0:06:02]} 24. Nd5 {[%emt 0:02:15]} Kg7 {[%emt 0:00:45]} 25. Be3 {[%emt 0:06:14]} Rc2 {[%emt 0:02:41]} 26. f4 {[%emt 0:02:14]} Nxe2+ {[%emt 0:02:11]} 27. Rxe2 {[%emt 0:00:53]} Rxe2 {[%emt 0:01:59]} 28. Bxe2 {[%emt 0:00:03]} Bd4 {[%emt 0:00:37]} 29. Bxd4+ {[%emt 0:00:54]} cxd4 {[%emt 0:00:01]} 30. Bxh5 {[%emt 0:01:27]} gxh5 {[%emt 0:00:06]} 31. f5 {[%emt 0:00:26]} Bd7 {[%emt 0:02:01]} 32. Rd1 {[%emt 0:02:04]} d3 {[%emt 0:00:22]} 33. Kf2 {[%emt 0:00:40]} Ra2+ {[%emt 0:00:39]} 34. Kf3 {[%emt 0:00:24]} Rc2 {[%emt 0:00:27]} 35. Rxd3 {[%emt 0:00:32]} Bc6 {[%emt 0:00:33]} 36. Rc3 {[%emt 0:00:33]} Rd2 {[%emt 0:00:13]} 37. h4 {[%emt 0:00:36]} Rd1 {[%emt 0:00:39]} 38. g3 {[%emt 0:00:49]} f6 {[%emt 0:00:32]} 39. Ke3 {[%emt 0:00:44]} Kf7 {[%emt 0:00:37]} 40. Rd3 {[%emt 0:00:15]} Re1+ {[%emt 0:00:29]} 41. Kd4 {[%emt 0:30:14]} Re2 {[%emt 0:02:10]} 42. Re3 {[%emt 0:00:00]} Rb2 {[%emt 0:05:58]} 43. Kc5 {[%emt 0:00:00]} Rd2 {[%emt 0:01:45]} 44. Nb4 {[%emt 0:00:00]} Rd8 {[%emt 0:03:06]} 45. Kb6 {[%emt 0:00:00]} Rc8 {[%emt 0:05:37]} 46. c5 {[%emt 0:00:00]} Kf8 {[%emt 0:01:18]} 47. Nxc6 {[%emt 0:00:00]} Rxc6+ {[%emt 0:00:04]} 48. Kb5 {[%emt 0:00:00]} Ra6 {[%emt 0:04:18]} 49. Rb3 {[%emt 0:00:00]} Rc6 {[%emt 0:02:44]} 50. Kc4 {[%emt 0:00:00]} Rc7 {[%emt 0:00:05]} 51. Rb6 {[%emt 0:00:00]} Kf7 {[%emt 0:00:18]} 52. Kd5 {[%emt 0:00:00]} Rd7+ {[%emt 0:00:30]} 53. Rd6 {[%emt 0:00:00]} Re7 {[%emt 0:00:12]} 54. Kd4 {[%emt 0:00:00]} Kg7 {[%emt 0:02:54]} 55. Rd8 {[%emt 0:00:00]} Kf7 {[%emt 0:02:46]} 56. Rh8 {[%emt 0:00:00]} Rd7+ {[%emt 0:01:10]} 57. Kc4 {[%emt 0:00:00]} Kg7 {[%emt 0:00:04]} 58. Rb8 {[%emt 0:00:00]} Kf7 {[%emt 0:03:05]} 59. Kb5 {[%emt 0:00:00]} Rc7 {[%emt 0:00:12]} 60. Rh8 {[%emt 0:00:00]} Kg7 {[%emt 0:00:03]} 61. Rd8 {[%emt 0:00:32]} Kf7 {[%emt 0:00:32]} 62. Rd5 {[%emt 0:00:40]} Re7 {[%emt 0:01:59]} 63. Kb6 {[%emt 0:00:25]} Kg7 {[%emt 0:00:15]} 64. Rd8 {[%emt 0:00:27]} Rxe4 {[%emt 0:00:59]} 65. Kxb7 {[%emt 0:00:30]} 1-0

[Event "WTCC-65 2018"]
[Site "Radebeul"]
[Date "2018.07.11"]
[Round "5"]
[White "Ackermann, Hans Werner"]
[Black "Krueger, Erich"]
[Result "1-0"]
[ECO "A05"]
[WhiteElo "2267"]
[BlackElo "2126"]
[Annotator "NA"]
[PlyCount "59"]
[EventDate "2018.07.07"]
[EventType "team-tourn"]
[EventCountry "GER"]
[SourceTitle "playchess.com"]
[Source "ChessBase"]
[SourceQuality "1"]
[TimeControl "40/5400+30:1800+30"]

1. Nf3 {[%emt 0:00:00]} Nf6 {[%emt 0:00:00]} 2. b3 {[%emt 0:00:00]} g6 {[%emt 0:00:00]} 3. Bb2 {[%emt 0:00:00]} Bg7 {[%emt 0:00:00]} 4. g3 {[%emt 0:00:19]} d6 {[%emt 0:00:10]} 5. d4 {[%emt 0:00:59]} O-O {[%emt 0:00:14]} 6. Bg2 {[%emt 0:00:08]} c5 {[%emt 0:00:09]} 7. O-O {[%emt 0:01:00]} Nc6 {[%emt 0:00:40]} 8. c4 {[%emt 0:02:16]} Bg4 {[%emt 0:06:39]} 9. Nbd2 {[%emt 0:08:37]} Qb6 {[%emt 0:06:50]} 10. d5 {[%emt 0:04:05]} Nb4 {[%emt 0:01:22]} 11. a3 {[%emt 0:03:43]} Na6 {[%emt 0:00:20]} 12. h3 {[%emt 0:02:42]} Bxf3 {[%emt 0:04:49]} 13. exf3 {[%emt 0:02:37]} Qc7 {[%emt 0:04:06]} 14. f4 {[%emt 0:05:19]} Qd7 {[%emt 0:01:19]} 15. Re1 {[%emt 0:15:22]} Rfe8 {[%emt 0:01:22]} 16. Rb1 {[%emt 0:02:43]} Rab8 {[%emt 0:08:38]} 17. Nf1 {[%emt 0:11:17]} b5 {[%emt 0:02:43]} 18. Ne3 {[%emt 0:03:28]} Nc7 {[%emt 0:01:45]} 19. Qc2 {[%emt 0:02:53]} bxc4 {[%emt 0:02:15]} 20. bxc4 {[%emt 0:02:21]} Rb6 {[%emt 0:04:39]} 21. Bc3 {[%emt 0:05:47]} Reb8 {[%emt 0:02:31]} 22. Rxb6 {[%emt 0:03:31]} Rxb6 {[%emt 0:02:08]} 23. Rb1 {[%emt 0:04:00]} Nfe8 {[%emt 0:02:44]} 24. Rxb6 {[%emt 0:03:01]} axb6 {[%emt 0:00:09]} 25. Ng4 {[%emt 0:00:09]} b5 {[%emt 0:04:58]} 26. Bf1 {[%emt 0:04:42]} bxc4 {[%emt 0:00:22]} 27. Bxc4 {[%emt 0:01:21]} h5 {[%emt 0:01:38]} 28. Bxg7 {[%emt 0:01:17]} Kxg7 {[%emt 0:04:36]} 29. Ne3 {[%emt 0:00:20]} Qxh3 {[%emt 0:00:46]} 30. f5 1-0

[Event "WTCC-65 2018"]
[Site "Radebeul"]
[Date "2018.07.11"]
[Round "5"]
[White "Giffard, Nicolas"]
[Black "Gass, Ulrich"]
[Result "1-0"]
[ECO "E61"]
[WhiteElo "2260"]
[BlackElo "2072"]
[Annotator "NA"]
[PlyCount "89"]
[EventDate "2018.07.07"]
[EventType "team-tourn"]
[EventCountry "GER"]
[SourceTitle "playchess.com"]
[Source "ChessBase"]
[SourceQuality "1"]
[TimeControl "40/5400+30:1800+30"]

1. d4 {[%emt 0:00:00]} Nf6 {[%emt 0:00:00]} 2. c4 {[%emt 0:00:00]} g6 {[%emt 0:00:06]} 3. Nc3 {[%emt 0:00:00]} Bg7 {[%emt 0:00:02]} 4. Bg5 {[%emt 0:00:09]} c5 {[%emt 0:00:44]} 5. e3 {[%emt 0:00:47]} Qa5 {[%emt 0:01:24]} 6. Qd2 {[%emt 0:00:09]} cxd4 {[%emt 0:00:25]} 7. exd4 {[%emt 0:00:07]} Nc6 {[%emt 0:03:03]} 8. Nf3 {[%emt 0:02:34]} O-O {[%emt 0:04:21]} 9. Be2 {[%emt 0:02:55]} d6 {[%emt 0:07:32]} 10. d5 {[%emt 0:03:31]} Nb8 {[%emt 0:00:38]} 11. O-O {[%emt 0:01:43]} Bg4 {[%emt 0:02:17]} 12. h3 {[%emt 0:00:23]} Bxf3 {[%emt 0:02:04]} 13. Bxf3 {[%emt 0:00:07]} Nbd7 {[%emt 0:00:14]} 14. Rac1 {[%emt 0:00:22]} Rac8 {[%emt 0:00:28]} 15. Be2 {[%emt 0:00:15]} Rfe8 {[%emt 0:00:37]} 16. Rfe1 {[%emt 0:01:05]} a6 {[%emt 0:04:54]} 17. Bf1 {[%emt 0:02:51]} Ne5 {[%emt 0:15:15]} 18. b3 {[%emt 0:00:42]} Qa3 {[%emt 0:08:13]} 19. Nb1 {[%emt 0:03:37]} Qc5 {[%emt 0:01:55]} 20. Be3 {[%emt 0:01:59]} Qc7 {[%emt 0:00:10]} 21. Bd4 {[%emt 0:01:30]} Nh5 {[%emt 0:01:48]} 22. Be2 {[%emt 0:03:56]} Nf6 {[%emt 0:03:25]} 23. f4 {[%emt 0:05:09]} Ned7 {[%emt 0:00:10]} 24. Bf3 {[%emt 0:00:22]} Nf8 {[%emt 0:04:39]} 25. Qb2 {[%emt 0:02:07]} Red8 {[%emt 0:02:04]} 26. Nd2 {[%emt 0:01:20]} Ne8 {[%emt 0:00:17]} 27. Bg4 {[%emt 0:01:43]} Bxd4+ {[%emt 0:01:27]} 28. Qxd4 {[%emt 0:00:13]} f5 {[%emt 0:01:40]} 29. Bf3 {[%emt 0:00:17]} Ng7 {[%emt 0:02:42]} 30. Re3 {[%emt 0:04:03]} Re8 {[%emt 0:08:16]} 31. Rce1 {[%emt 0:00:56]} Kf7 {[%emt 0:00:43]} 32. Kh1 {[%emt 0:04:09]} a5 {[%emt 0:07:13]} 33. Qb2 {[%emt 0:01:23]} Qd8 {[%emt 0:03:07]} 34. Nb1 {[%emt 0:01:59]} Nd7 {[%emt 0:01:34]} 35. Nc3 {[%emt 0:00:15]} Nf6 {[%emt 0:00:24]} 36. Nb5 {[%emt 0:00:21]} a4 {[%emt 0:01:20]} 37. Qd4 {[%emt 0:03:30]} Qa5 {[%emt 0:04:35]} 38. Rxe7+ {[%emt 0:00:47]} Rxe7 {[%emt 0:01:54]} 39. Nxd6+ {[%emt 0:00:08]} Kg8 {[%emt 0:04:41]} 40. Rxe7 {[%emt 0:00:09]} Rf8 {[%emt 0:00:37]} 41. Nxb7 {[%emt 0:33:34]} Qb4 {[%emt 0:30:26]} 42. Nc5 {[%emt 0:00:09]} axb3 {[%emt 0:00:08]} 43. axb3 {[%emt 0:00:12]} Nfh5 {[%emt 0:00:00]} 44. d6 {[%emt 0:00:00]} Rc8 {[%emt 0:00:00]} 45. d7 {[%emt 0:00:00]} 1-0